fUSD/lending_fUSD_20240515
["ID","MTS","AMOUNT","RATE_DAILY","PERIOD"]
[327062249,1715769047051,-500.0,0.0001178,2]
[327062250,1715769047061,-500.0,0.0001178,2]
[327062251,1715769047071,-500.0,0.0001178,2]
[327062252,1715769047081,-565.98,0.0001178,2]
[327062253,1715769047091,-500.0,0.0001178,2]
[327062254,1715769047102,-500.0,0.0001178,2]
[327062255,1715769047111,-225.90073639,0.0001178,2]
[327062256,1715769047120,-500.0,0.0001178,2]
[327062257,1715769047130,-228.44,0.0001178,2]
[327062258,1715769047140,-500.0,0.0001178,2]
[327062259,1715769047149,-500.0,0.0001178,2]
[327062260,1715769047159,-833.45,0.0001178,2]
[327062261,1715769047169,-833.45,0.0001178,2]
[327062262,1715769047178,-500.0,0.0001178,2]
[327062263,1715769047188,-500.0,0.0001178,2]
[327062264,1715769047198,-1945.35,0.0001178,2]
[327062265,1715769047207,-1945.35,0.0001178,2]
[327062266,1715769047217,-162.37888633,0.0001178,2]
[327062267,1715769047227,-500.0,0.0001178,2]
[327062268,1715769047236,-500.0,0.0001178,2]
[327062269,1715769047246,-500.0,0.0001178,2]
[327062270,1715769047255,-500.0,0.0001178,2]
[327062271,1715769047264,-500.0,0.0001178,2]
[327062272,1715769047273,-500.0,0.0001178,2]
[327062273,1715769047283,-500.0,0.0001178,2]
[327062274,1715769047292,-618.85640917,0.0001178,2]
[327062275,1715769047302,-500.0,0.0001178,2]
[327062276,1715769047311,-500.0,0.0001178,2]
[327062277,1715769047320,-500.0,0.0001178,2]
[327062278,1715769047329,-500.0,0.0001178,2]
[327062279,1715769047338,-268.88,0.0001178,2]
[327062280,1715769047347,-500.0,0.0001178,2]
[327062281,1715769047356,-500.0,0.0001178,2]
[327062282,1715769047366,-630.575,0.0001178,2]
[327062283,1715769047375,-500.0,0.0001178,2]
[327062284,1715769047384,-500.0,0.0001178,2]
[327062285,1715769047394,-500.0,0.0001178,2]
[327062286,1715769047403,-228.56182891,0.0001178,2]
[327062287,1715769047413,-500.0,0.0001178,2]
[327062288,1715769047422,-500.0,0.0001178,2]
[327062289,1715769047431,-500.0,0.0001178,2]
[327062290,1715769047440,-500.0,0.0001178,2]
[327062291,1715769047449,-500.0,0.0001178,2]
[327062292,1715769047458,-500.0,0.0001178,2]
[327062293,1715769047467,-648.45437769,0.0001178,2]
[327062294,1715769047477,-568.44962421,0.0001178,2]
[327062295,1715769047486,-500.0,0.0001178,2]
[327062296,1715769047496,-500.0,0.0001178,2]
[327062297,1715769047505,-500.0,0.0001178,2]
[327062298,1715769047514,-500.0,0.0001178,2]
[327062299,1715769047523,-500.0,0.0001178,2]
[327062300,1715769047533,-500.0,0.0001178,2]
[327062301,1715769047543,-301.94,0.0001178,2]
[327062302,1715769047552,-188.92,0.0001178,2]
[327062303,1715769047561,-362.96,0.0001178,2]
[327062304,1715769047570,-561.44745608,0.0001178,2]
[327062305,1715769047580,-500.0,0.0001178,2]
[327062306,1715769047589,-500.0,0.0001178,2]
[327062307,1715769047601,-500.0,0.0001178,2]
[327062308,1715769047611,-500.0,0.0001178,2]
[327062309,1715769047621,-500.0,0.0001178,2]
[327062310,1715769047630,-500.0,0.0001178,2]
[327062311,1715769047640,-500.0,0.0001178,2]
[327062312,1715769047654,-500.0,0.0001178,2]
[327062313,1715769047663,-500.0,0.0001178,2]
[327062314,1715769047672,-556.70842954,0.0001178,2]
[327062315,1715769047682,-500.0,0.0001178,2]
[327062316,1715769047692,-500.0,0.0001178,2]
[327062317,1715769047701,-500.0,0.0001178,2]
[327062318,1715769047710,-500.0,0.0001178,2]
[327062319,1715769047720,-500.0,0.0001178,2]
[327062320,1715769047730,-500.0,0.0001178,2]
[327062321,1715769047740,-500.0,0.0001178,2]
[327062322,1715769047749,-500.0,0.0001178,2]
[327062323,1715769047758,-500.0,0.0001178,2]
[327062324,1715769047767,-500.0,0.0001178,2]
[327062325,1715769047776,-500.0,0.0001178,2]
[327062326,1715769047785,-500.0,0.0001178,2]
[327062327,1715769047796,-500.0,0.0001178,2]
[327062328,1715769047807,-500.0,0.0001178,2]
[327062329,1715769047816,-500.0,0.0001178,2]
[327062330,1715769047828,-500.0,0.0001178,2]
[327062331,1715769047839,-523.58519278,0.0001178,2]
[327062332,1715769047848,-500.0,0.0001178,2]
[327062333,1715769047858,-500.0,0.0001178,2]
[327062334,1715769047868,-278.1564042,0.0001178,2]
[327062335,1715769047877,-500.0,0.0001178,2]
[327062336,1715769047887,-500.0,0.0001178,2]
[327062337,1715769047896,-500.0,0.0001178,2]
[327062338,1715769047905,-500.0,0.0001178,2]
[327062340,1715769047915,-500.0,0.0001178,2]
[327062342,1715769047924,-500.0,0.0001178,2]
[327062344,1715769047934,-150.0,0.00011795,2]
[327062346,1715769047943,-217.85327596,0.00011796,2]
[327062348,1715769047953,-33589.49170934,0.00011796,2]
[327062350,1715769047963,-150.0,0.0001181,2]
[327062352,1715769047972,-200.0,0.00011817,2]
[327062354,1715769047981,-1500.0,0.00011823,2]
[327062356,1715769047990,-200.0,0.00011831,2]
[327062358,1715769047999,-1000.0,0.00011831,2]
[327062360,1715769048008,-200.0,0.00011832,2]
[327062362,1715769048017,-1000.0,0.00011832,2]
[327062364,1715769048027,-500.0,0.00011832,2]
[327062366,1715769048036,-150.0,0.00011838,2]
[327062368,1715769048045,-150.0,0.0001184,2]
[327062370,1715769048054,-150.0,0.00011845,2]
[327062372,1715769048063,-33589.49170925,0.00011851,2]
[327062374,1715769048072,-500.0,0.00011852,2]
[327062376,1715769048081,-500.0,0.00011852,2]
[327062378,1715769048090,-500.0,0.00011852,2]
[327062380,1715769048099,-500.0,0.00011852,2]
[327062382,1715769048108,-500.0,0.00011852,2]
[327062384,1715769048117,-500.0,0.00011852,2]
[327062386,1715769048127,-500.0,0.00011852,2]
[327062388,1715769048136,-500.0,0.00011852,2]
[327062390,1715769048145,-382.40106778,0.00011852,2]
[327062394,1715769048171,-117.59893222,0.00011852,2]
[327062396,1715769048180,-500.0,0.00011852,2]
[327062398,1715769048190,-499.24420537,0.00011852,2]
[327062399,1715769048199,-500.0,0.00011852,2]
[327062400,1715769048208,-500.0,0.00011852,2]
[327062401,1715769048217,-499.98,0.00011852,2]
[327062402,1715769048226,-234.12183321,0.00011852,2]
[327062406,1715769048410,-940.575,0.00011812,2]
[327062407,1715769048447,-3270.56,0.00011812,2]
[327062408,1715769048458,-1663.50005,0.00011812,2]
[327062448,1715770231823,-817.82411991,8.653e-05,2]
[327062450,1715770231833,-597.23959927,8.654e-05,2]
[327062451,1715770232741,-185.05380332,8.654e-05,2]
[327062452,1715770232751,-202.19375496,8.655e-05,2]
[327062453,1715770232763,-767.43336129,8.655e-05,2]
[327062454,1715770232776,-93.81339773,8.655e-05,2]
[327062455,1715770232786,-319.0,8.665e-05,2]
[327062456,1715770232796,-844.18660227,8.992e-05,2]
[327062458,1715770232807,-744.69266516,8.992e-05,2]
[327062460,1715770232817,-524.28180258,9e-05,2]
[327062462,1715770232827,-204.52,0.00010411,2]
[327062463,1715770232836,-556.32753414,0.00010529,2]
[327062465,1715770232847,-443.67246586,0.00010529,2]
[327062467,1715770232857,-172.09805414,0.00010596,2]
[327062470,1715770232869,-77.90194586,0.00010596,2]
[327062472,1715770232878,-250.0,0.00010597,2]
[327062474,1715770232888,-654.37,0.00010634,2]
[327062476,1715770232897,-230.47,0.00010634,2]
[327062478,1715770232907,-152.12,0.00010645,2]
[327062480,1715770232916,-172.47,0.00010806,2]
[327062482,1715770232926,-378.41805414,0.00010927,2]
[327062484,1715770232937,-121.58194586,0.00010927,2]
[327062486,1715770232946,-428.87840767,0.00010927,2]
[327062489,1715770232967,-71.12159233,0.00010927,2]
[327062492,1715770232977,-222.0913792,0.00010927,2]
[327062494,1715770232989,-277.9086208,0.00010927,2]
[327062496,1715770233002,-59.84171685,0.00010927,2]
[327062498,1715770233014,-440.15828315,0.00010927,2]
[327062500,1715770233023,-500.0,0.00010927,2]
[327062502,1715770233034,-500.0,0.00010927,2]
[327062504,1715770233044,-500.0,0.00010927,2]
[327062506,1715770233054,-500.0,0.00010927,2]
[327062508,1715770233063,-500.0,0.00010927,2]
[327062510,1715770233076,-500.0,0.00010927,2]
[327062512,1715770233087,-500.0,0.00010927,2]
[327062514,1715770233096,-500.0,0.00010927,2]
[327062516,1715770233105,-500.0,0.00010927,2]
[327062518,1715770233115,-500.0,0.00010927,2]
[327062520,1715770233124,-500.0,0.00010927,2]
[327062522,1715770233133,-251.44345991,0.00010927,2]
[327062523,1715770233146,-248.55654009,0.00010927,2]
[327062524,1715770233156,-109.34895591,0.00010927,2]
[327062525,1715770233168,-390.65104409,0.00010927,2]
[327062526,1715770233178,-500.0,0.00010927,2]
[327062527,1715770233187,-222.94473887,0.00010927,2]
[327062529,1715770238327,-435.91,0.0001081,2]
[327062532,1715770238337,-277.05526113,0.00010927,2]
[327062535,1715770238346,-323.27924938,0.00010927,2]
[327062539,1715770238357,-176.72075062,0.00010927,2]
[327062540,1715770238367,-299.23244584,0.00010927,2]
[327062541,1715770238378,-200.76755416,0.00010927,2]
[327062542,1715770238388,-500.0,0.00010927,2]
[327062543,1715770238397,-500.0,0.00010927,2]
[327062544,1715770238406,-500.0,0.00010927,2]
[327062545,1715770238417,-500.0,0.00010927,2]
[327062546,1715770238426,-500.0,0.00010927,2]
[327062547,1715770238435,-500.0,0.00010927,2]
[327062548,1715770238444,-500.0,0.00010927,2]
[327062549,1715770238454,-500.0,0.00010927,2]
[327062550,1715770238463,-500.0,0.00010927,2]
[327062551,1715770238472,-500.0,0.00010927,2]
[327062552,1715770238482,-500.0,0.00010927,2]
[327062553,1715770238491,-500.0,0.00010927,2]
[327062554,1715770238501,-500.0,0.00010927,2]
[327062555,1715770238510,-500.0,0.00010927,2]
[327062556,1715770238520,-500.0,0.00010927,2]
[327062557,1715770238530,-500.0,0.00010927,2]
[327062558,1715770238541,-500.0,0.00010927,2]
[327062559,1715770238552,-500.0,0.00010927,2]
[327062560,1715770238563,-500.0,0.00010927,2]
[327062561,1715770238575,-500.0,0.00010927,2]
[327062562,1715770238584,-500.0,0.00010927,2]
[327062563,1715770238594,-500.0,0.00010927,2]
[327062564,1715770238603,-478.57,0.00010927,2]
[327062565,1715770238613,-500.0,0.00010927,2]
[327062566,1715770238623,-500.0,0.00010927,2]
[327062567,1715770238633,-500.0,0.00010927,2]
[327062568,1715770238643,-500.0,0.00010927,2]
[327062569,1715770238652,-500.0,0.00010927,2]
[327062570,1715770238663,-500.0,0.00010927,2]
[327062571,1715770238672,-500.0,0.00010927,2]
[327062572,1715770238682,-500.0,0.00010927,2]
[327062573,1715770238691,-500.0,0.00010927,2]
[327062574,1715770238700,-500.0,0.00010927,2]
[327062575,1715770238710,-372.46000401,0.00010927,2]
[327062576,1715770238958,-127.53999599,0.00010927,2]
[327062577,1715770238967,-500.0,0.00010927,2]
[327062578,1715770238976,-500.0,0.00010927,2]
[327062579,1715770238987,-528.9,0.00010927,2]
[327062580,1715770238999,-500.0,0.00010927,2]
[327062581,1715770239008,-500.0,0.00010927,2]
[327062582,1715770239017,-500.0,0.00010927,2]
[327062583,1715770239026,-500.0,0.00010927,2]
[327062584,1715770239037,-500.0,0.00010927,2]
[327062585,1715770239047,-319.0,0.00010929,2]
[327062586,1715770239057,-1030.38846551,0.0001117,2]
[327062587,1715770239069,-19735.62695854,0.0001118,2]
[327062588,1715770239078,-5201.3234,0.0001158,2]
[327062589,1715770239087,-983.2592,0.0001158,2]
[327062590,1715770239096,-100000.0,0.0001158,2]
[327062591,1715770239105,-1000.0,0.0001158,2]
[327062592,1715770239114,-3461.879,0.0001168,2]
[327062593,1715770239123,-152.10763623,0.0001168,2]
[327062594,1715770239132,-150.0,0.00011684,2]
[327062595,1715770239143,-150.0,0.00011692,2]
[327062596,1715770239152,-150.0,0.00011717,2]
[327062597,1715770239161,-199.95004313,0.00011749,2]
[327062599,1715770239367,-1500.0,0.00011762,2]
[327062600,1715770239377,-200.85474743,0.00011768,2]
[327062601,1715770239387,-150.0,0.00011778,2]
[327062602,1715770239396,-393.74854519,0.00011779,2]
[327062603,1715770239406,-500.0,0.0001178,2]
[327062604,1715770239415,-271.71791069,0.0001178,2]
[327062605,1715770239425,-200.0,0.0001178,2]
[327062606,1715770239435,-500.0,0.0001178,2]
[327062607,1715770239444,-500.0,0.0001178,2]
[327062608,1715770239453,-500.0,0.0001178,2]
[327062609,1715770239463,-246.83,0.0001178,2]
[327062610,1715770239472,-500.0,0.0001178,2]
[327062611,1715770239482,-500.0,0.0001178,2]
[327062612,1715770239492,-500.0,0.0001178,2]
[327062613,1715770239501,-500.0,0.0001178,2]
[327062614,1715770239511,-500.0,0.0001178,2]
[327062615,1715770239521,-449.07,0.0001178,2]
[327062616,1715770239531,-500.0,0.0001178,2]
[327062617,1715770239540,-364.65,0.0001178,2]
[327062618,1715770239550,-500.0,0.0001178,2]
[327062619,1715770239560,-500.0,0.0001178,2]
[327062620,1715770239570,-500.0,0.0001178,2]
[327062621,1715770239579,-500.0,0.0001178,2]
[327062622,1715770239589,-312.28,0.0001178,2]
[327062623,1715770239598,-160.0,0.0001178,2]
[327062624,1715770239608,-500.0,0.0001178,2]
[327062625,1715770239617,-169.11,0.0001178,2]
[327062626,1715770239627,-500.0,0.0001178,2]
[327062627,1715770239636,-215.93,0.0001178,2]
[327062628,1715770239646,-512.93629726,0.0001178,2]
[327062629,1715770239656,-500.0,0.0001178,2]
[327062630,1715770239666,-500.0,0.0001178,2]
[327062631,1715770239676,-500.0,0.0001178,2]
[327062632,1715770239686,-500.0,0.0001178,2]
[327062633,1715770239696,-500.0,0.0001178,2]
[327062634,1715770239706,-192.08,0.0001178,2]
[327062635,1715770239716,-500.0,0.0001178,2]
[327062636,1715770239726,-322.65557569,0.0001178,2]
[327062637,1715770239739,-500.0,0.0001178,2]
[327062638,1715770239751,-320.12,0.0001178,2]
[327062639,1715770239761,-624.37,0.0001178,2]
[327062640,1715770239771,-500.0,0.0001178,2]
[327062641,1715770239781,-435.92,0.0001178,2]
[327062642,1715770239791,-500.0,0.0001178,2]
[327062643,1715770239800,-509.14177929,0.0001178,2]
[327062645,1715770239809,-547.97707515,0.0001178,2]
[327062646,1715770239819,-1776.04,0.0001178,2]
[327062647,1715770239828,-1776.04,0.0001178,2]
[327062648,1715770239838,-1776.04,0.0001178,2]
[327062649,1715770239847,-576.72992272,0.0001178,2]
[327062650,1715770239857,-500.0,0.0001178,2]
[327062651,1715770239866,-500.0,0.0001178,2]
[327062652,1715770239876,-511.91,0.0001178,2]
[327062653,1715770239886,-500.0,0.0001178,2]
[327062654,1715770239895,-320.03054969,0.0001178,2]
[327062655,1715770239904,-388.10239267,0.0001178,2]
[327062656,1715770239913,-212.17,0.0001178,2]
[327062657,1715770239924,-500.0,0.0001178,2]
[327062658,1715770239934,-500.0,0.0001178,2]
[327062659,1715770239944,-500.0,0.0001178,2]
[327062660,1715770239953,-383.65,0.0001178,2]
[327062661,1715770239963,-364.74,0.0001178,2]
[327062662,1715770239972,-236.19,0.0001178,2]
[327062663,1715770239981,-500.0,0.0001178,2]
[327062664,1715770239993,-500.0,0.0001178,2]
[327062665,1715770240003,-500.0,0.0001178,2]
[327062666,1715770240012,-500.0,0.0001178,2]
[327062667,1715770240023,-504.245088,0.0001178,2]
[327062668,1715770240032,-236.25,0.0001178,2]
[327062669,1715770240042,-501.33,0.0001178,2]
[327062670,1715770240052,-530.65,0.0001178,2]
[327062671,1715770240062,-500.0,0.0001178,2]
[327062672,1715770240074,-500.0,0.0001178,2]
[327062673,1715770240083,-500.0,0.0001178,2]
[327062674,1715770240093,-500.0,0.0001178,2]
[327062675,1715770240102,-500.0,0.0001178,2]
[327062676,1715770240112,-503.98589574,0.0001178,2]
[327062677,1715770240121,-649.62,0.0001178,2]
[327062678,1715770240130,-163.37152003,0.0001178,2]
[327062679,1715770240140,-237.37804278,0.0001178,2]
[327062680,1715770240150,-500.0,0.0001178,2]
[327062681,1715770240160,-500.0,0.0001178,2]
[327062682,1715770240170,-420.2,0.0001178,2]
[327062683,1715770240179,-500.0,0.0001178,2]
[327062684,1715770240189,-524.34569115,0.0001178,2]
[327062685,1715770240198,-504.95956102,0.0001178,2]
[327062686,1715770240207,-500.0,0.0001178,2]
[327062687,1715770240216,-500.0,0.0001178,2]
[327062688,1715770240226,-500.0,0.0001178,2]
[327062689,1715770240235,-500.0,0.0001178,2]
[327062690,1715770240244,-268.5682211,0.0001178,2]
[327062691,1715770240253,-500.0,0.0001178,2]
[327062692,1715770240263,-500.0,0.0001178,2]
[327062693,1715770240272,-500.0,0.0001178,2]
[327062694,1715770240282,-500.0,0.0001178,2]
[327062695,1715770240291,-205.61420616,0.0001178,2]
[327062696,1715770240301,-500.0,0.0001178,2]
[327062697,1715770240310,-500.0,0.0001178,2]
[327062698,1715770240320,-500.0,0.0001178,2]
[327062699,1715770240329,-593.9,0.0001178,2]
[327062700,1715770240339,-500.0,0.0001178,2]
[327062701,1715770240348,-500.0,0.0001178,2]
[327062702,1715770240357,-500.0,0.0001178,2]
[327062703,1715770240367,-500.0,0.0001178,2]
[327062704,1715770240376,-500.0,0.0001178,2]
[327062705,1715770240385,-500.0,0.0001178,2]
[327062706,1715770240395,-500.0,0.0001178,2]
[327062707,1715770240404,-598.11632064,0.0001178,2]
[327062708,1715770240413,-500.0,0.0001178,2]
[327062709,1715770240423,-500.0,0.0001178,2]
[327062710,1715770240432,-530.94623099,0.0001178,2]
[327062711,1715770240441,-500.0,0.0001178,2]
[327062712,1715770240451,-540.95880382,0.0001178,2]
[327062713,1715770240460,-500.0,0.0001178,2]
[327062714,1715770240470,-500.0,0.0001178,2]
[327062715,1715770240479,-500.0,0.0001178,2]
[327062716,1715770240488,-403.5312119,0.0001178,2]
[327062717,1715770240498,-500.0,0.0001178,2]
[327062718,1715770240507,-500.0,0.0001178,2]
[327062719,1715770240517,-371.60485,0.0001178,2]
[327062720,1715770240526,-500.0,0.0001178,2]
[327062721,1715770240536,-500.0,0.0001178,2]
[327062722,1715770240545,-500.0,0.0001178,2]
[327062723,1715770240555,-500.0,0.0001178,2]
[327062724,1715770240564,-500.0,0.0001178,2]
[327062725,1715770240574,-543.04944031,0.0001178,2]
[327062726,1715770240584,-500.0,0.0001178,2]
[327062727,1715770240593,-500.0,0.0001178,2]
[327062728,1715770240603,-500.0,0.0001178,2]
[327062729,1715770240612,-200.07595457,0.0001178,2]
[327062730,1715770240622,-500.0,0.0001178,2]
[327062731,1715770240634,-500.0,0.0001178,2]
[327062732,1715770240644,-500.0,0.0001178,2]
[327062733,1715770240654,-275.90765548,0.0001178,2]
[327062734,1715770240664,-500.0,0.0001178,2]
[327062735,1715770240674,-500.0,0.0001178,2]
[327062736,1715770240684,-500.0,0.0001178,2]
[327062737,1715770240694,-500.0,0.0001178,2]
[327062738,1715770240704,-500.0,0.0001178,2]
[327062739,1715770240713,-500.0,0.0001178,2]
[327062740,1715770240723,-500.0,0.0001178,2]
[327062741,1715770240732,-643.74268088,0.0001178,2]
[327062742,1715770240742,-500.0,0.0001178,2]
[327062743,1715770240751,-500.0,0.0001178,2]
[327062744,1715770240761,-416.65,0.0001178,2]
[327062745,1715770240771,-232.01864193,0.0001178,2]
[327062746,1715770240780,-500.0,0.0001178,2]
[327062747,1715770240789,-500.0,0.0001178,2]
[327062748,1715770240799,-500.0,0.0001178,2]
[327062749,1715770240808,-563.23283292,0.0001178,2]
[327062750,1715770240818,-610.33,0.0001178,2]
[327062751,1715770240827,-500.0,0.0001178,2]
[327062752,1715770240836,-500.0,0.0001178,2]
[327062753,1715770240845,-279.72567193,0.0001178,2]
[327062754,1715770240855,-359.66,0.0001178,2]
[327062755,1715770240865,-500.0,0.0001178,2]
[327062756,1715770240874,-613.94,0.0001178,2]
[327062758,1715770240884,-500.0,0.0001178,2]
[327062760,1715770240893,-500.0,0.0001178,2]
[327062762,1715770240903,-500.0,0.0001178,2]
[327062763,1715770240912,-500.0,0.0001178,2]
[327062764,1715770240922,-500.0,0.0001178,2]
[327062765,1715770240931,-500.0,0.0001178,2]
[327062766,1715770240941,-569.86571767,0.0001178,2]
[327062767,1715770240951,-500.0,0.0001178,2]
[327062768,1715770240961,-500.0,0.0001178,2]
[327062769,1715770240970,-500.0,0.0001178,2]
[327062770,1715770240979,-500.0,0.0001178,2]
[327062771,1715770240992,-500.0,0.0001178,2]
[327062772,1715770241003,-500.0,0.0001178,2]
[327062773,1715770241012,-478.14081679,0.0001178,2]
[327062774,1715770241021,-500.0,0.0001178,2]
[327062775,1715770241030,-500.0,0.0001178,2]
[327062776,1715770241041,-322.30973979,0.0001178,2]
[327062777,1715770241052,-500.0,0.0001178,2]
[327062778,1715770241062,-500.0,0.0001178,2]
[327062779,1715770241074,-313.33590894,0.0001178,2]
[327062780,1715770241083,-277.53169658,0.0001178,2]
[327062781,1715770241092,-500.0,0.0001178,2]
[327062782,1715770241101,-500.0,0.0001178,2]
[327062783,1715770241110,-500.0,0.0001178,2]
[327062784,1715770241119,-500.0,0.0001178,2]
[327062785,1715770241128,-500.0,0.0001178,2]
[327062786,1715770241137,-228.04387678,0.0001178,2]
[327062787,1715770241146,-500.0,0.0001178,2]
[327062788,1715770241155,-500.0,0.0001178,2]
[327062789,1715770241165,-500.0,0.0001178,2]
[327062790,1715770241175,-440.54,0.0001178,2]
[327062791,1715770241184,-313.50211148,0.0001178,2]
[327062792,1715770241193,-500.0,0.0001178,2]
[327062793,1715770241202,-227.21320887,0.0001178,2]
[327062794,1715770241211,-500.0,0.0001178,2]
[327062795,1715770241220,-500.0,0.0001178,2]
[327062796,1715770241229,-500.0,0.0001178,2]
[327062797,1715770241238,-500.0,0.0001178,2]
[327062798,1715770241248,-500.0,0.0001178,2]
[327062799,1715770241257,-500.0,0.0001178,2]
[327062800,1715770241266,-316.08,0.0001178,2]
[327062801,1715770241275,-328.76329876,0.0001178,2]
[327062802,1715770241284,-511.35402015,0.0001178,2]
[327062803,1715770241295,-500.0,0.0001178,2]
[327062804,1715770241304,-509.06626653,0.0001178,2]
[327062805,1715770241313,-388.09171016,0.0001178,2]
[327062806,1715770241368,-127.68267399,0.0001178,2]
[327062807,1715770241376,-159.40561917,0.0001178,2]
[327062808,1715770241387,-333.84516704,0.0001178,2]
[327062809,1715770241398,-126.88034349,0.0001178,2]
[327062810,1715770241409,-373.11965651,0.0001178,2]
[327062811,1715770241419,-500.0,0.0001178,2]
[327062812,1715770241428,-500.0,0.0001178,2]
[327062813,1715770241437,-506.1885474,0.0001178,2]
[327062814,1715770241447,-500.0,0.0001178,2]
[327062815,1715770241456,-500.0,0.0001178,2]
[327062816,1715770241465,-513.28,0.0001178,2]
[327062817,1715770241474,-411.77548854,0.0001178,2]
[327062818,1715770241487,-974.66451146,0.0001178,2]
[327062819,1715770241496,-1386.44,0.0001178,2]
[327062820,1715770241507,-1386.44,0.0001178,2]
[327062821,1715770241516,-764.0,0.0001178,2]
[327062822,1715770241525,-764.0,0.0001178,2]
[327062823,1715770241534,-764.0,0.0001178,2]
[327062824,1715770241544,-491.57,0.0001178,2]
[327062825,1715770241555,-208.52,0.0001178,2]
[327062826,1715770241564,-500.0,0.0001178,2]
[327062827,1715770241574,-500.0,0.0001178,2]
[327062828,1715770241583,-500.0,0.0001178,2]
[327062829,1715770241592,-500.0,0.0001178,2]
[327062830,1715770241601,-527.73,0.0001178,2]
[327062831,1715770241613,-500.0,0.0001178,2]
[327062832,1715770241622,-500.0,0.0001178,2]
[327062833,1715770241631,-500.0,0.0001178,2]
[327062834,1715770241641,-500.0,0.0001178,2]
[327062835,1715770241650,-500.0,0.0001178,2]
[327062836,1715770241660,-500.0,0.0001178,2]
[327062837,1715770241670,-500.0,0.0001178,2]
[327062838,1715770241679,-500.0,0.0001178,2]
[327062839,1715770241688,-500.0,0.0001178,2]
[327062840,1715770241697,-500.0,0.0001178,2]
[327062841,1715770241707,-500.0,0.0001178,2]
[327062842,1715770241716,-193.23,0.0001178,2]
[327062843,1715770241725,-500.0,0.0001178,2]
[327062844,1715770241735,-531.05,0.0001178,2]
[327062845,1715770241746,-500.0,0.0001178,2]
[327062846,1715770241756,-500.0,0.0001178,2]
[327062847,1715770241765,-500.0,0.0001178,2]
[327062848,1715770241776,-487.59875694,0.0001178,2]
[327062849,1715770241785,-339.32,0.0001178,2]
[327062850,1715770241794,-263.87,0.0001178,2]
[327062851,1715770241805,-336.30903124,0.0001178,2]
[327062852,1715770241815,-507.74160257,0.0001178,2]
[327062853,1715770241824,-500.0,0.0001178,2]
[327062854,1715770241834,-500.0,0.0001178,2]
[327062855,1715770241843,-501.98,0.0001178,2]
[327062856,1715770241853,-344.24093195,0.0001178,2]
[327062857,1715770241862,-500.0,0.0001178,2]
[327062858,1715770241871,-500.0,0.0001178,2]
[327062859,1715770241880,-500.0,0.0001178,2]
[327062860,1715770241889,-500.0,0.0001178,2]
[327062861,1715770241898,-500.0,0.0001178,2]
[327062862,1715770241907,-508.06286393,0.0001178,2]
[327062863,1715770241917,-549.64,0.0001178,2]
[327062864,1715770241926,-500.0,0.0001178,2]
[327062865,1715770241935,-500.0,0.0001178,2]
[327062866,1715770241944,-500.0,0.0001178,2]
[327062867,1715770241954,-500.0,0.0001178,2]
[327062868,1715770241963,-250.97230589,0.0001178,2]
[327062869,1715770241972,-500.0,0.0001178,2]